[Event "4NCL 2021-22"]
[Site "England"]
[Date "2022.04.30"]
[Round "7.70"]
[White "Willmoth, Robert F"]
[Black "Zulfic, Fedja"]
[Result "0-1"]
[ECO "D03"]
[WhiteElo "2121"]
[BlackElo "2231"]
[Annotator "TA"]
[PlyCount "78"]
[EventDate "2021.11.27"]
[EventType "team-tourn"]
[EventCountry "ENG"]
[SourceTitle "playchess.com"]
[Source "ChessBase"]
[SourceQuality "1"]
[TimeControl "40/6000+30:3000+30"]

{[%evp 17,78,0,0,0,0,2,0,2,34,-8,-7,-21,-25,-30,-24,-41,-42,-30,0,0,0,-27,-29,-26,-29,-29,-12,-39,2,4,6,-56,-7,-95,-63,-96,0,-41,-32,-48,0,0,-2,-17,0,0,0,-3,42,0,140,102,87,82,203,-1199,-1201,-1138,-1107,-1105,-1085,-29985,-1184]} 1. d4 {[%emt 0:00:02]} Nf6 {[%emt 0:00:06]} 2. Nf3 {[%emt 0:00:05]} g6 {[%emt 0:01:29]} 3. Bg5 {[%emt 0:00:20]} Bg7 {[%emt 0:00:49]} 4. Nbd2 {[%emt 0:00:22]} d5 {[%emt 0:01:13]} 5. e3 {[%emt 0:00:07]} O-O {[%emt 0:04:12]} 6. Bd3 {[%emt 0:04:38]} c5 {[%emt 0:03:45]} 7. c3 {[%emt 0:00:08][%cal Bc2c3,Bc3b4,Bb4b5][%mdl 32]} Nc6 {[%emt 0:04:50]} 8. O-O {[%emt 0:00:17]} Qb6 {[%emt 0:19:26]} 9. Rb1 {[%emt 0:01:49]} Re8 {[%emt 0:12:01]} 10. b4 {[%emt 0:16:21] D03: 1 d4 d5 2 Nf3 Nf6 3 Bg5, including Torre Attack with early ...d5.} cxb4 {[%emt 0:12:24]} 11. cxb4 {[%emt 0:00:13]} e5 {[%emt 0:01:47]} 12. dxe5 {[%emt 0:10:00] [#] The position is equal.} Ng4 $146 {[%emt 0:10:36]} ({Predecessor:} 12... Nxe5 13. Nxe5 Rxe5 14. Bf4 Re8 15. h3 Be6 16. a4 Rac8 17. a5 Qd8 18. Be5 Qe7 19. Nf3 {½-½ (19) Vasile,C (2167)-Blaszczak,J ICCF email 2013}) 13. b5 {[%emt 0:04:41]} Ncxe5 {[%emt 0:00:51]} 14. Be2 {[%emt 0:00:25]} Bf5 {[%emt 0:03:30]} 15. Rb3 {[%emt 0:02:01]} Nxf3+ {[%emt 0:23:38]} 16. Bxf3 {[%emt 0:07:20]} Qe6 {[%emt 0:01:27]} 17. Nb1 {[%emt 0:06:15]} Nf6 {[%emt 0:03:50]} (17... h6 {is more complex.} 18. Bxd5 Qd7 19. Bh4 Rac8) 18. Bxf6 {[%emt 0:09:57]} Qxf6 {[%emt 0:00:17]} 19. Nc3 {[%emt 0:01:56]} d4 {[%emt 0:01:56]} 20. exd4 {[%emt 0:01:26]} Qxd4 {[%emt 0:00:40]} 21. Qxd4 {[%emt 0:01:39]} Bxd4 {[%emt 0:00:02]} 22. Bxb7 {[%emt 0:00:18]} Rab8 {[%emt 0:00:52]} (22... Rad8 $5 {[%cal Rf5c2]}) 23. Bc6 {[%emt 0:00:44]} Re5 {[%emt 0:00:26]} 24. Rc1 {[%emt 0:09:27]} (24. Nd5 $11) 24... Be6 {[%emt 0:00:55]} (24... Rd8 $15 {should be considered.}) 25. Ra3 {[%emt 0:02:24]} (25. Rbb1 $11) 25... Kg7 {[%emt 0:01:22][%mdl 1024] Black has strong compensation.} 26. g3 {[%emt 0:01:42]} Rd8 {[%emt 0:00:32]} (26... Rc5 $17) 27. Kg2 {[%emt 0:01:49]} (27. Rd1 $5 {[%cal Ra3a4]}) 27... Bc5 {[%emt 0:00:31] This bishop pair is nice.} 28. Ra4 {[%emt 0:00:11]} f5 {[%emt 0:00:30]} (28... Bb6 $15) 29. Rc2 $11 {[%emt 0:01:50]} Bb6 {[%emt 0:00:31]} 30. Ne2 {[%emt 0:02:25]} g5 {[%emt 0:00:05]} 31. h4 {[%emt 0:00:14]} h6 {[%emt 0:00:12]} 32. f4 {[%emt 0:00:37]} Re3 {[%emt 0:00:45]} 33. hxg5 {[%emt 0:00:28]} h5 {[%emt 0:00:44] [#]} (33... Bf7 $11 {keeps the balance.}) 34. Rb4 $1 $16 {[%emt 0:03:58]} Rd1 {[%emt 0:00:26] [#]} 35. Rbb2 $1 {[%emt 0:01:31] aiming for Ng1.} Ra3 {[%emt 0:00:36]} (35... Red3 $16 {keeps fighting.}) 36. Bf3 $4 {[%emt 0:01:24][%mdl 8192] [#]} (36. Rd2 $18 Rxd2 37. Rxd2) 36... Rxf3 $1 $19 {[%emt 0:00:11][%mdl 512]} 37. Nd4 {[%emt 0:03:19] [#]} Bxd4 $1 {[%emt 0:00:59]} 38. Rc7+ {[%emt 0:00:59]} (38. Kxf3 Re1) 38... Bf7 {[%emt 0:00:29] ( -> ...Rfd3)} 39. Rbc2 {[%emt 0:01:49]} Ra3 {[%emt 0:00:23] Weighted Error Value: White=0.55/Black=0.27 (precise)} (39... Rdd3 $142 40. Kh1 Rxg3 41. Rd7 h4 42. Rxd4 Rxd4 43. Rc7 Rd1+ 44. Kh2 Rd2+ 45. Kh1 h3 46. Rxa7 h2 47. Rxf7+ Kxf7 48. g6+ Rxg6 49. a4 Rg1#) 0-1

[Event "4NCL 2021-22"]
[Site "England"]
[Date "2022.04.30"]
[Round "7.71"]
[White "Quinn, John M"]
[Black "Pollack, Oscar"]
[Result "1/2-1/2"]
[ECO "A56"]
[WhiteElo "2206"]
[BlackElo "2140"]
[Annotator "TA"]
[PlyCount "102"]
[EventDate "2021.11.27"]
[EventType "team-tourn"]
[EventCountry "ENG"]
[SourceTitle "playchess.com"]
[Source "ChessBase"]
[SourceQuality "1"]
[TimeControl "40/6000+30:3000+30"]

{[%evp 11,102,66,64,25,31,21,40,39,40,29,112,104,97,39,39,54,36,45,33,-20,-21,-21,-18,-19,0,-26,-26,-29,-43,-34,-22,-38,-36,-36,0,0,8,-67,-77,-89,-87,-88,-72,-70,-62,-87,-80,-90,-90,-149,-146,-154,-158,-157,-154,-145,-141,-145,-127,-160,-133,-175,-145,-152,-143,-185,-165,-320,-312,-281,-292,-285,-260,-233,-64,-51,-22,-22,-33,-20,0,0,0,-46,0,0,0,0,0,0,0,0,0]} 1. d4 {[%emt 0:00:02]} Nf6 {[%emt 0:04:03]} 2. c4 {[%emt 0:00:07]} c5 {[%emt 0:00:02]} 3. d5 {[%emt 0:00:07]} e5 {[%emt 0:00:02]} 4. Nc3 {[%emt 0:02:02]} d6 {[%emt 0:00:04]} 5. e4 {[%emt 0:01:35]} Be7 {[%emt 0:00:03]} 6. Be2 {[%emt 0:03:22]} O-O {[%emt 0:08:03]} 7. f4 {[%emt 0:07:12] A56: Czech Benoni.} exf4 {[%emt 0:02:00]} 8. Bxf4 {[%emt 0:00:17]} Nbd7 {[%emt 0:00:04]} 9. Nf3 {[%emt 0:07:29] White is slightly better.} Ng4 {[%emt 0:04:16]} 10. O-O {[%emt 0:11:09] [#]} Bf6 $146 {[%emt 0:06:13]} (10... Qb6 $11) ({Predecessor:} 10... Nge5 11. Qd2 Bf6 12. Nb5 Nxf3+ 13. gxf3 Ne5 14. Kh1 a6 15. Nc3 Ng6 16. Be3 Re8 {0-1 (49) Flores,M (1879)-Espinoza Solano,J (2054) Managua 2021}) 11. Bxd6 $16 {[%emt 0:12:16]} Ne3 {[%emt 0:00:48][%csl LRd1,LRf1]} 12. Qd3 {[%emt 0:01:23]} (12. Qd2 $16 Nxf1 13. Rxf1) 12... Nxf1 $14 {[%emt 0:00:54]} 13. Rxf1 {[%emt 0:00:23] Hoping for e5.} (13. Bxf8 Nxh2 $1 14. Nxh2 (14. Bd6 Nxf3+ 15. Qxf3 Ne5 $17) 14... Qxf8 $15) 13... Re8 {[%emt 0:04:01] Inhibits e5.} 14. Nb5 $1 {[%emt 0:06:06] Strongly threatening Nc7.} Ne5 {[%emt 0:05:51]} 15. Bxe5 {[%emt 0:18:17]} ({White should try} 15. Qe3 $14) 15... Bxe5 $11 {[%emt 0:00:10]} 16. d6 {[%emt 0:00:13]} Bg4 $1 {[%emt 0:12:28]} ({Don't take} 16... Bxb2 17. Nc7 Bg4 18. e5 (18. Nxa8 Qxa8 19. Kh1 h6 $14) (18. Nxe8 Qxe8 19. e5 Bxf3 $11) 18... Bxf3 19. Qxf3 $14) 17. Qd5 $1 {[%emt 0:13:47]} Bf4 {[%emt 0:08:56]} 18. Nc7 {[%emt 0:06:37]} Qxd6 {[%emt 0:01:47]} (18... Be3+ $2 19. Kh1 Be6 20. Qd3 $18 (20. Qxb7 Rb8 $16)) 19. Qxd6 {[%emt 0:01:55]} Bxd6 {[%emt 0:00:06] This bishop pair is nice.} 20. Nxa8 {[%emt 0:00:08][%cal Oe4e5]} Rxa8 {[%emt 0:00:39]} 21. Rd1 {[%emt 0:02:39]} Bf4 {[%emt 0:04:47]} 22. Kf2 {[%emt 0:01:33]} Kf8 {[%emt 0:01:52]} 23. g3 {[%emt 0:01:27]} Bc7 {[%emt 0:00:26][%cal Bf4c7,Bc7e5,Be5f6][%mdl 32]} 24. Ke3 {[%emt 0:01:14]} (24. Ng5 $11 Bc8 25. Nxh7+ Ke7 26. Ng5) 24... Re8 $15 {[%emt 0:03:34]} 25. Nd2 {[%emt 0:03:34]} Be6 {[%emt 0:01:28]} 26. Bd3 {[%emt 0:01:26]} Be5 {[%emt 0:00:47]} 27. Nf3 {[%emt 0:00:29] Against Bd4+} Bg4 {[%emt 0:02:33]} (27... Bxb2 $6 28. Rb1 Ba3 29. Rxb7) 28. Rd2 {[%emt 0:00:29]} Bf6 {[%emt 0:00:52]} 29. Kf4 {[%emt 0:01:04]} h5 {[%emt 0:00:52]} 30. e5 {[%emt 0:02:48]} (30. Ke3 $142) 30... g5+ $1 $17 {[%emt 0:00:11]} 31. Ke3 {[%emt 0:00:57]} Bxe5 {[%emt 0:00:45]} 32. Nxe5 {[%emt 0:00:15]} Rxe5+ {[%emt 0:00:14][%mdl 4096] Endgame KRB-KRB} 33. Kf2 {[%emt 0:00:05]} Ke7 {[%emt 0:01:00]} 34. Bf1 {[%emt 0:00:27]} Rf5+ {[%emt 0:00:42]} 35. Ke1 {[%emt 0:00:24]} Bf3 {[%emt 0:00:28]} 36. Bd3 {[%emt 0:00:49]} Re5+ {[%emt 0:00:51]} 37. Kf2 {[%emt 0:00:07]} g4 {[%emt 0:00:09]} 38. a3 {[%emt 0:01:19]} Re6 {[%emt 0:00:58]} 39. b4 $2 {[%emt 0:01:04]} (39. Bf5 Rf6 40. Bd3 (40. Rd7+ $2 Ke8 $19)) 39... Ra6 $19 {[%emt 0:00:35]} 40. bxc5 {[%emt 0:01:32]} Rxa3 {[%emt 0:00:05]} 41. Ke3 {[%emt 0:51:29]} Kf6 {[%emt 0:53:59]} 42. Kd4 {[%emt 0:00:00] [#]} Ra1 $2 {[%emt 0:00:00]} (42... a5 $1 $19 {Threatens to win with ...Kg5.} 43. Rf2 Ke6) 43. Be4 $1 $15 {[%emt 0:00:00]} Bxe4 {[%emt 0:00:00]} 44. Kxe4 {[%emt 0:00:00] KR-KR} Re1+ {[%emt 0:00:00]} 45. Kd5 $1 {[%emt 0:00:00]} Re5+ {[%emt 0:00:00]} 46. Kd6 $1 {[%emt 0:00:00] And now Rf2+ would win.} Re6+ {[%emt 0:00:00]} 47. Kd5 {[%emt 0:00:00]} (47. Kd7 $11) 47... a5 {[%emt 0:00:00]} (47... Re8 $1 $15 48. Rf2+ Ke7) 48. Rb2 $11 {[%emt 0:00:00] The position is equal.} Re7 {[%emt 0:00:00]} 49. Kd6 {[%emt 0:00:00] Inhibits Rd7+. Threatening mate with Rf2+.} Re6+ {[%emt 0:00:00]} 50. Kd5 {[%emt 0:00:00]} Re5+ {[%emt 0:00:00]} 51. Kd6 {[%emt 0:00:00]} Re6+ {[%emt 0:02:46] White happily takes the draw.  Weighted Error Value: White=0.17 (very precise) /Black=0.17 (very precise)} 1/2-1/2

[Event "4NCL 2021-22"]
[Site "England"]
[Date "2022.04.30"]
[Round "7.72"]
[White "Ethelontis, Alexandros N"]
[Black "Pedersen, Carsten"]
[Result "0-1"]
[ECO "A29"]
[WhiteElo "2131"]
[BlackElo "2096"]
[Annotator "TA"]
[PlyCount "68"]
[EventDate "2021.11.27"]
[EventType "team-tourn"]
[EventCountry "ENG"]
[SourceTitle "playchess.com"]
[Source "ChessBase"]
[SourceQuality "1"]
[TimeControl "40/6000+30:3000+30"]

{[%evp 14,68,13,0,0,7,27,29,33,-41,-33,-47,0,-16,-15,-75,-68,-59,-58,-363,-351,-354,-358,-635,-620,-630,-607,-623,-627,-620,-613,-611,-486,-475,-481,-562,-529,-563,-529,-614,-608,-627,-435,-1820,-1775,-1721,-1711,-29980,-29981,-29981,-29982,-29981,-29981,-29987,-29987,-29989,-29990]} 1. Nf3 {[%emt 0:00:07]} Nf6 {[%emt 0:00:12]} 2. c4 {[%emt 0:00:18]} Nc6 {[%emt 0:00:41]} 3. Nc3 {[%emt 0:04:31]} e5 {[%emt 0:01:26]} 4. g3 {[%emt 0:04:45]} Bb4 {[%emt 0:02:45]} 5. Bg2 {[%emt 0:00:29]} O-O {[%emt 0:00:54]} 6. O-O {[%emt 0:00:45]} Bxc3 7. bxc3 {[%emt 0:01:28]} d6 {[%emt 0:00:51]} 8. Rb1 {[%emt 0:05:58]} Re8 {[%emt 0:06:06] A29: English Opening: Four Knights Variation with 4 g3.} 9. Ne1 {[%emt 0:08:17] [#]} Na5 $146 {[%emt 0:10:34]} ({Predecessor:} 9... Qd7 10. d3 h6 11. Nc2 b6 12. e4 Qg4 13. f3 Qh5 14. Ne3 Ne7 15. g4 Qh4 {1-0 (38) Musialkiewicz,P (2278)-Reza,W (2310) Poronin 2016}) 10. d3 {[%emt 0:08:57]} e4 {[%emt 0:27:18] White has an edge.} 11. Qa4 {[%emt 0:13:12]} (11. Bg5 $1 $14) 11... b6 $1 $15 {[%emt 0:05:09]} 12. Bg5 {[%emt 0:03:33] Threatens to win with Bxf6.} Bf5 {[%emt 0:06:31]} (12... Bb7 $1 $15) 13. Rd1 {[%emt 0:26:18]} h6 {[%emt 0:07:31]} 14. Bf4 {[%emt 0:01:53]} (14. Bxf6 $11 Qxf6 15. Nc2) 14... Qe7 {[%emt 0:05:54]} 15. Nc2 {[%emt 0:01:20]} c5 {[%emt 0:05:26]} 16. Bxd6 $2 {[%emt 0:09:26][%mdl 8192] This costs White the game.} Qxd6 $19 {[%emt 0:00:33]} 17. dxe4 {[%emt 0:00:11]} Bd7 {[%emt 0:02:14] White must now prevent ...Qxd1.} 18. Qxa5 $2 {[%emt 0:07:42] [#]} (18. Qa3 Qb8 19. Ne3) 18... Qxd1 $1 {[%emt 0:02:10][%mdl 512]} 19. Rxd1 {[%emt 0:00:19]} bxa5 {[%emt 0:00:05]} 20. e5 {[%emt 0:00:13] [#]} Rab8 {[%emt 0:06:29]} 21. exf6 {[%emt 0:01:12]} Ba4 {[%emt 0:00:07]} 22. Rc1 {[%emt 0:00:59]} Rxe2 {[%emt 0:00:49]} 23. Ne3 {[%emt 0:00:46]} Rbb2 {[%emt 0:01:48]} 24. Rf1 {[%emt 0:06:48]} Rxa2 {[%emt 0:00:29]} 25. Nf5 {[%emt 0:00:23]} gxf6 {[%emt 0:02:10]} 26. Nxh6+ {[%emt 0:00:13]} Kf8 {[%emt 0:02:18]} 27. Bd5 {[%emt 0:00:20]} Red2 {[%emt 0:01:09]} 28. Rb1 {[%emt 0:00:55]} (28. Nxf7 $142 Rxd5 29. cxd5 Kxf7 30. Rb1) 28... Rd1+ {[%emt 0:00:32]} 29. Rxd1 {[%emt 0:00:26]} Bxd1 {[%emt 0:00:01]} 30. Nxf7 {[%emt 0:00:13] [#]} Bf3 $1 {[%emt 0:03:38][%mdl 512] Black mates.} 31. Bxf3 {[%emt 0:00:33]} Kxf7 {[%emt 0:00:04] KR-KB} 32. Bd5+ {[%emt 0:00:42]} Kg7 {[%emt 0:00:12]} 33. h4 {[%emt 0:01:23]} a4 {[%emt 0:00:07][%cal Ba5a4,Ba4a3][%mdl 32]} 34. g4 {[%emt 0:00:14]} a3 {[%emt 0:01:34] Weighted Error Value: White=0.98/Black=0.15 (very precise)} 0-1

[Event "4NCL 2021-22"]
[Site "England"]
[Date "2022.04.30"]
[Round "7.73"]
[White "Kosten, Anthony C."]
[Black "Gormally, Daniel W"]
[Result "1/2-1/2"]
[ECO "A29"]
[WhiteElo "2367"]
[BlackElo "2483"]
[Annotator "TA"]
[PlyCount "171"]
[EventDate "2021.11.27"]
[EventType "team-tourn"]
[EventCountry "ENG"]
[SourceTitle "playchess.com"]
[Source "ChessBase"]
[SourceQuality "1"]
[TimeControl "40/6000+30:3000+30"]

{[%evp 10,171,0,0,11,5,20,0,22,22,29,2,20,8,34,-22,-6,-8,-16,-20,-9,-41,-52,-56,-47,-58,-54,-61,-43,-63,-71,-58,-57,-204,-202,-227,-226,-219,-217,-331,-255,-264,-262,-247,-247,-258,-267,-265,-265,-262,-274,-280,-283,-265,-276,-277,-270,-282,-268,-282,-283,-283,0,-284,-283,-283,-264,-260,-185,-172,-174,-168,-170,-241,-248,-243,-236,-247,-249,-312,-296,-301,-265,-327,-300,-304,-301,-429,-428,-560,-481,-471,-465,-437,-334,-316,-318,-303,-322,-309,-323,-321,-317,-312,-310,-309,-259,-264,-246,-250,-229,-238,-173,-170,-170,-154,-124,-104,-89,-157,-181,-178,-20,-39,-39,-47,-64,-768,-760,-718,-681,-1512,-276,-260,-303,-306,-294,-289,-275,-240,-226,-346,-54,-54,-54,-54,-53,-53,-53,-53,-53,-53,-53,-53,-53,-53,-53,-53,-53,-53,-53,-53,-53,-94]} 1. c4 {[%emt 0:00:03]} e5 {[%emt 0:00:05]} 2. Nc3 {[%emt 0:00:16]} Nf6 {[%emt 0:00:17]} 3. Nf3 {[%emt 0:00:17]} Nc6 {[%emt 0:00:05]} 4. g3 {[%emt 0:00:06]} Bb4 {[%emt 0:00:29]} 5. Bg2 {[%emt 0:00:30]} O-O {[%emt 0:00:48]} 6. Nd5 {[%emt 0:03:50]} Bc5 {[%emt 0:00:07] A29: English Opening: Four Knights Variation with 4 g3.} 7. b4 {[%emt 0:00:38][%cal Bb2b4,Bb4c5][%mdl 32]} Nxd5 {[%emt 0:16:16]} 8. bxc5 {[%emt 0:02:10] [#]} Nf6 $146 {[%emt 0:01:55] The position is equal.} ({Predecessor:} 8... Ndb4 9. d3 Qe7 10. Rb1 e4 11. dxe4 Qxe4 12. Bf4 Qxc4 13. O-O Nxa2 14. Rb2 Nc3 {1-0 (24) Toby,A-Gutsche,K Dieren 1982}) 9. O-O {[%emt 0:07:54]} Qe7 {[%emt 0:00:42]} 10. Ba3 {[%emt 0:08:16][%cal Oe2e4]} e4 {[%emt 0:02:03]} 11. Ne1 {[%emt 0:00:55]} b6 $1 {[%emt 0:05:47]} 12. Nc2 {[%emt 0:01:59]} (12. d4 $14) 12... bxc5 $11 {[%emt 0:01:07]} 13. d3 {[%emt 0:04:27]} Rb8 {[%emt 0:17:18]} 14. dxe4 {[%emt 0:05:03]} Nxe4 {[%emt 0:00:20]} 15. Qd3 {[%emt 0:05:31]} Re8 {[%emt 0:01:52]} 16. Ne3 {[%emt 0:02:00]} Qe5 {[%emt 0:07:05]} 17. Bxe4 {[%emt 0:06:06]} Qxe4 {[%emt 0:00:03]} 18. Bxc5 {[%emt 0:01:10]} d6 {[%emt 0:02:15]} 19. Ba3 {[%emt 0:02:01]} Qxd3 {[%emt 0:11:04]} 20. exd3 {[%emt 0:00:12]} Nd4 {[%emt 0:01:50][%cal Bc6d4,Bd4f3,Bf3d2][%mdl 32]} 21. Rab1 {[%emt 0:13:15]} ({Better is} 21. Rfb1 $15 Bb7 22. Kf1) 21... Bb7 $1 $19 {[%emt 0:04:56][%cal Rd4e2]} 22. Rb2 {[%emt 0:03:14] Inhibits Ne2+.} Nf3+ {[%emt 0:01:42]} 23. Kg2 {[%emt 0:03:43][%cal Ob2b7] aiming for Rxb7!} Nd2+ $1 {[%emt 0:05:18]} 24. Rxb7 {[%emt 0:03:19]} (24. Kg1 $142 Nxf1 25. Kxf1) 24... Rxb7 {[%emt 0:01:27]} 25. Rd1 {[%emt 0:01:20]} Nb1 {[%emt 0:00:11]} 26. Bc1 {[%emt 0:00:18]} f6 {[%emt 0:03:39]} (26... Nc3 $2 27. Rd2) 27. h4 {[%emt 0:05:00]} Re5 {[%emt 0:01:38]} 28. d4 {[%emt 0:01:51]} Ra5 {[%emt 0:00:38]} 29. Re1 {[%emt 0:00:21]} Kf7 {[%emt 0:01:26]} (29... Rxa2 30. Nf5 $17) 30. d5 {[%emt 0:00:19]} Rb8 {[%emt 0:03:55]} (30... Rxa2 31. Nf5 $17) 31. Nf5 {[%emt 0:01:34] Black must now prevent Re7+.} Re8 {[%emt 0:00:05] Against Re7+} (31... Rxa2 32. Re7+ Kf8 33. Rxg7 $16) 32. Be3 {[%emt 0:00:15]} Na3 {[%emt 0:07:18]} 33. Rc1 {[%emt 0:01:31]} g6 {[%emt 0:00:58]} 34. Nd4 {[%emt 0:04:35]} Rc5 {[%emt 0:02:24]} (34... Ra4 $2 35. c5 $19) 35. Nc2 {[%emt 0:02:07]} Ra5 {[%emt 0:00:20]} (35... Nxc4 36. Bxc5 dxc5 37. Nb4 $1 $11) (35... Rxc4 36. Nxa3 Rxc1 37. Bxc1 $17) 36. Nd4 {[%emt 0:05:05]} Ra4 {[%emt 0:00:37]} 37. c5 {[%emt 0:00:14]} Nc4 {[%emt 0:05:10]} 38. Bf4 {[%emt 0:02:02]} g5 {[%emt 0:04:54]} 39. hxg5 {[%emt 0:01:15]} fxg5 {[%emt 0:00:03]} (39... dxc5 40. Nb3 $17) 40. Bxg5 {[%emt 0:02:23]} Re5 {[%emt 0:00:04]} ({Stronger than} 40... dxc5 41. Ne6 $17) 41. Nf3 {[%emt 0:52:42]} (41. cxd6 {keeps fighting.} Rxg5 42. dxc7) 41... Rxd5 {[%emt 0:02:46]} 42. cxd6 {[%emt 0:00:00]} cxd6 {[%emt 0:00:38]} 43. Rh1 {[%emt 0:00:00]} Kg7 {[%emt 0:01:13]} ({Wrong is} 43... Rxa2 $2 44. Rxh7+ Kg6 45. Rh6+ Kg7 46. Rh4) 44. Bh6+ {[%emt 0:00:00]} Kg6 {[%emt 0:01:42]} 45. Bf4 {[%emt 0:00:00]} h5 {[%emt 0:06:12]} 46. Re1 {[%emt 0:00:00]} Rxa2 {[%emt 0:02:03]} 47. Re6+ {[%emt 0:00:00]} Kf7 {[%emt 0:00:48]} 48. Rh6 {[%emt 0:00:00]} (48. Re4 {only move.} Ne5 49. Bxe5 dxe5 50. g4) 48... Kg7 {[%emt 0:00:52]} 49. Nh4 {[%emt 0:00:00]} Re2 {[%emt 0:03:33]} 50. Rg6+ {[%emt 0:00:00]} Kf7 {[%emt 0:00:07] And now ...Re6 would win.} 51. Bh6 {[%emt 0:00:00]} Re6 {[%emt 0:04:27]} 52. Rg7+ {[%emt 0:00:00]} Ke8 {[%emt 0:00:02]} 53. Ng6 {[%emt 0:00:00]} Rf5 {[%emt 0:04:48]} 54. Rg8+ {[%emt 0:00:00]} Kf7 {[%emt 0:02:28]} 55. Rg7+ {[%emt 0:00:00]} Kf6 {[%emt 0:00:44]} ({Not} 55... Ke8 $2 56. Rg8+ Kf7 57. Rg7+ Kf6 58. Nh4 $19) 56. Nh4 {[%emt 0:00:00]} Ra5 {[%emt 0:01:17]} 57. Rc7 {[%emt 0:00:52]} Re4 {[%emt 0:00:41]} 58. Bg7+ {[%emt 0:00:00]} Ke6 $1 {[%emt 0:01:58]} 59. Ng6 {[%emt 0:00:00]} Ne5 {[%emt 0:01:38]} 60. Nf4+ {[%emt 0:00:00] [#]} Rxf4 $1 {[%emt 0:04:44]} 61. gxf4 {[%emt 0:00:00][%mdl 4096] Endgame KRB-KRN} Ng6 $1 {[%emt 0:00:07]} 62. Bd4 {[%emt 0:00:00]} a6 {[%emt 0:00:07]} 63. Be3 {[%emt 0:00:00]} Nh4+ {[%emt 0:00:04]} 64. Kh3 {[%emt 0:00:00]} (64. Kg3 $142 Nf5+ 65. Kf3) 64... Nf5 $17 {[%emt 0:00:03]} 65. Rh7 {[%emt 0:00:00]} h4 $2 {[%emt 0:00:53]} (65... Ra1 $1 $19 {...a5 is the strong threat.} 66. Kg2 h4) 66. Kg4 {[%emt 0:00:00]} Ra1 {[%emt 0:00:29]} 67. Rh8 $1 {[%emt 0:00:00]} Rg1+ {[%emt 0:00:07]} 68. Kf3 $2 {[%emt 0:00:00][%mdl 8192]} (68. Kh3 $15) 68... a5 $19 {[%emt 0:01:16]} 69. Re8+ {[%emt 0:00:00]} Kf7 {[%emt 0:01:01]} 70. Ra8 {[%emt 0:00:00]} h3 $2 {[%emt 0:04:16]} (70... a4 71. Bd2 h3) 71. Rh8 {[%emt 0:00:00]} a4 {[%emt 0:04:44]} 72. Rxh3 {[%emt 0:00:00] [#]} a3 $1 {[%emt 0:00:03]} 73. Rh7+ {[%emt 0:00:00] [#]} Ng7 $1 {[%emt 0:00:13]} 74. Bd4 {[%emt 0:03:43]} a2 {[%emt 0:00:03] Strongly threatening ...Kg8.} 75. Ke4 {[%emt 0:03:44]} (75. Rh6 $142) 75... a1=Q $2 {[%emt 0:00:12]} (75... Kg8 $19 76. Rh3 Re1+ 77. Re3 a1=Q 78. Bxa1 Rxa1) 76. Rxg7+ $15 {[%emt 0:00:19] Black is slightly better.} Rxg7 {[%emt 0:00:14]} 77. Bxa1 {[%emt 0:00:04] KR-KB} Rg1 {[%emt 0:00:32]} 78. Bd4 {[%emt 0:00:20]} Ke6 {[%emt 0:01:09]} 79. f5+ {[%emt 0:01:09]} Kd7 {[%emt 0:00:05]} 80. f4 {[%emt 0:02:00]} Rg4 {[%emt 0:01:36]} 81. Bh8 {[%emt 0:03:20]} Rg8 {[%emt 0:00:26]} 82. Bd4 {[%emt 0:00:28]} Re8+ {[%emt 0:00:38]} 83. Kd5 {[%emt 0:00:23]} Rb8 {[%emt 0:00:02]} 84. Ke4 {[%emt 0:02:54]} Rb5 {[%emt 0:00:12]} 85. Bg7 {[%emt 0:00:39]} Rb4+ {[%emt 0:00:38]} 86. Bd4 {[%emt 0:00:42] Whites escaped into a draw.  Weighted Error Value: White=0.20 (precise) /Black=0.16 (very precise)} 1/2-1/2